{"text_format":"1","workbook":"xlsx","n_sheets":6,"sheets":["invoice2","invoice3","invoice","codes2","codes","Customers"],"not_rendered":{"charts":0,"images":12,"macros":0,"external_links":0,"defined_names":18,"comments":0,"pivot_tables":0},"unopened":[],"bounds":{"document_bytes":16777216,"sheet_cells":100000,"rows_first":2000,"rows_last":500,"rows_between":2000,"halvings":0,"cell_chars":16384,"cell_head_chars":4096},"cells_cut":0,"cells_raw":0,"read":"whole","date_system":"1900"}

{"sheet":"invoice2","index":0,"n_rows":59,"n_cols":276,"rows_kept":59,"cut":false,"hidden":false,"merged":[[58,3,58,4],[58,5,58,6],[58,7,58,8],[2,2,2,3],[4,2,4,3],[6,2,6,3],[6,7,6,8],[55,5,55,6],[55,7,55,8],[56,5,56,6],[56,7,56,8],[57,3,57,4],[57,5,57,6],[57,7,57,8]]}
[3,null,null,0,null,null,"00:00:00",null,null,0,null,null,0,null,null,0,null,null,0,null,null,0,null,null,0,null,null,0,null,null,0,null,null,0,null,null,0,null,null,0,null,null,0,null,null,0,null,null,0,null,null,0,null,null,0,null,null,0,null,null,0,null,null,0,null,null,0,null,null,0,null,null,0,null,null,0,null,null,0,null,null,0,null,null,0,null,null,0,null,null,0,null,null,0,null,null,0,null,null,0,null,null,0,null,null,0,null,null,0,null,null,0,null,null,0,null,null,0,null,null,0,null,null,0,null,null,0,null,null,0,null,null,0,null,null,0,null,null,0,null,null,0,null,null,0,null,null,0,null,null,0,null,null,0,null,null,0,null,null,0,null,null,0,null,null,0,null,null,0,null,null,0,null,null,0,null,null,0,null,null,0,null,null,0,null,null,0,null,null,0,null,null,0,null,null,0,null,null,0,null,null,0,null,null,0,null,null,0,null,null,0,null,null,0,null,null,0,null,null,0,null,null,0,null,null,0,null,null,0,null,null,0,null,null,0,null,null,0,null,null,0,null,null,0,null,null,0,null,null,0,null,null,0,null,null,0,null,null,0,null,null,0,null,null,0,null,null,0,null,null,0]
[]
[null,null,"التاريخ :",null,{"$f":"NOW()","v":"2018-06-30T21:56:11.600"},{"$f":"$E$3","v":43281.914023148151},null,294]
[]
[null,null,"فاتورة رقم 1السيد :",null,null,"الهاتف",null,667884407]
[]
[]
[]
[null,null,"التسلسل","الكود","اسم الصنف","الكمية",null,"السعر","القيمه"]
[null,null,null,null,null,null,null,null,null,null,null,null,10]
[null,null,null,null,null,null,null,null,null,null,null,null,11]
[null,null,null,null,null,null,null,null,null,null,null,null,12]
[null,null,null,null,null,null,null,null,null,null,null,null,13]
[null,null,null,null,null,null,null,null,null,null,null,null,14]
[null,null,null,null,null,null,null,null,null,null,null,null,15]
[null,null,null,null,null,null,null,null,null,null,null,null,17]
[null,null,null,null,null,null,null,null,null,null,null,null,18]
[null,null,null,null,null,null,null,null,null,null,null,null,19]
[null,null,null,null,null,null,null,null,null,null,null,null,20]
[null,null,null,null,null,null,null,null,null,null,null,null,21]
[null,null,null,null,null,null,null,null,null,null,null,null,22]
[null,null,null,null,null,null,null,null,null,null,null,null,23]
[null,null,null,null,null,null,null,null,null,null,null,null,24]
[null,null,null,null,null,null,null,null,null,null,null,null,55]
[null,null,null,null,null,null,null,null,null,null,null,null,55]
[null,null,null,null,null,null,null,null,null,null,null,null,55]
[null,null,null,null,null,null,null,null,null,null,null,null,55]
[null,null,null,null,null,null,null,null,null,null,null,null,55]
[null,null,null,null,null,null,null,null,null,null,null,null,55]
[null,null,null,null,null,null,null,null,null,null,null,null,55]
[null,null,null,null,null,null,null,null,null,null,null,null,55]
[null,null,null,null,null,null,null,null,null,null,null,null,55]
[null,null,null,null,null,null,null,null,null,null,null,null,55]
[null,null,null,null,null,null,null,null,null,null,null,null,55]
[null,null,null,null,null,null,null,null,null,null,null,null,55]
[null,null,null,null,null,null,null,null,null,null,null,null,55]
[null,null,null,null,null,null,null,null,null,null,null,null,55]
[null,null,null,null,null,null,null,null,null,null,null,null,55]
[null,null,null,null,null,null,null,null,null,null,null,null,55]
[null,null,null,null,null,null,null,null,null,null,null,null,55]
[null,null,null,null,null,null,null,null,null,null,null,null,55]
[null,null,null,null,null,null,null,null,null,null,null,null,55]
[null,null,null,null,null,null,null,null,null,null,null,null,55]
[null,null,null,null,null,null,null,null,null,null,null,null,55]
[null,null,null,null,null,null,null,null,null,null,null,null,55]
[null,null,null,null,null,null,null,null,null,null,null,null,55]
[null,null,null,null,null,null,null,null,null,null,null,null,55]
[null,null,null,null,null,null,null,null,null,null,null,null,55]
[null,null,null,null,null,null,null,null,null,null,null,null,55]
[null,null,null,null,null,null,null,null,null,null,null,null,55]
[null,null,null,null,null,null,null,null,null,null,null,null,55]
[null,null,null,null,null,null,null,null,null,null,null,null,55]
[null,null,null,null,null,null,null,null,null,null,null,null,55]
[null,null,null,null,null,null,null,null,null,null,null,null,55]
[null,null,null,null,null,null,null,null,null,null,null,null,55]
[null,null,null,null,null,"المجموع ",null,186939,null,null,null,0,null,null,0,null,null,0,null,null,0,null,null,0,null,null,0,null,null,0,null,null,0,null,null,0,null,null,0,null,null,0,null,null,0,null,null,0,null,null,0,null,null,0,null,null,0,null,null,0,null,null,0,null,null,0,null,null,0,null,null,0,null,null,0,null,null,0,null,null,0,null,null,0,null,null,0,null,null,0,null,null,0,null,null,0,null,null,0,null,null,0,null,null,0,null,null,0,null,null,0,null,null,0,null,null,0,null,null,0,null,null,0,null,null,0,null,null,0,null,null,0,null,null,0,null,null,0,null,null,0,null,null,0,null,null,0,null,null,0,null,null,0,null,null,0,null,null,0,null,null,0,null,null,0,null,null,0,null,null,0,null,null,0,null,null,0,null,null,0,null,null,0,null,null,0,null,null,0,null,null,0,null,null,0,null,null,0,null,null,0,null,null,0,null,null,0,null,null,0,null,null,0,null,null,0,null,null,0,null,null,0,null,null,0,null,null,0,null,null,0,null,null,0,null,null,0,null,null,0,null,null,0,null,null,0,null,null,0,null,null,0,null,null,0,null,null,0,null,null,0,null,null,0,null,null,0,null,null,0,null,null,0,null,null,0]
[null,null,null,null,null,"الباقي قديم"]
[null,null,null,null,null,"دفع"]
[null,null,null,null,null,"الجمالي",null,186939]

{"sheet":"invoice3","index":1,"n_rows":59,"n_cols":276,"rows_kept":59,"cut":false,"hidden":false,"merged":[[58,3,58,4],[58,5,58,6],[58,7,58,8],[2,2,2,3],[4,2,4,3],[6,2,6,3],[6,7,6,8],[55,5,55,6],[55,7,55,8],[56,5,56,6],[56,7,56,8],[57,3,57,4],[57,5,57,6],[57,7,57,8]]}
[3,null,null,0,null,null,"00:00:00",null,null,0,null,null,0,null,null,0,null,null,0,null,null,0,null,null,0,null,null,0,null,null,0,null,null,0,null,null,0,null,null,0,null,null,0,null,null,0,null,null,0,null,null,0,null,null,0,null,null,0,null,null,0,null,null,0,null,null,0,null,null,0,null,null,0,null,null,0,null,null,0,null,null,0,null,null,0,null,null,0,null,null,0,null,null,0,null,null,0,null,null,0,null,null,0,null,null,0,null,null,0,null,null,0,null,null,0,null,null,0,null,null,0,null,null,0,null,null,0,null,null,0,null,null,0,null,null,0,null,null,0,null,null,0,null,null,0,null,null,0,null,null,0,null,null,0,null,null,0,null,null,0,null,null,0,null,null,0,null,null,0,null,null,0,null,null,0,null,null,0,null,null,0,null,null,0,null,null,0,null,null,0,null,null,0,null,null,0,null,null,0,null,null,0,null,null,0,null,null,0,null,null,0,null,null,0,null,null,0,null,null,0,null,null,0,null,null,0,null,null,0,null,null,0,null,null,0,null,null,0,null,null,0,null,null,0,null,null,0,null,null,0,null,null,0,null,null,0,null,null,0,null,null,0,null,null,0,null,null,0,null,null,0]
[]
[null,null,"التاريخ :",null,{"$f":"NOW()","v":"2018-06-30T21:56:11.600"},{"$f":"$E$3","v":43281.914023148151},null,243]
[]
[null,null,"فاتورة رقم 1السيد :",null,null,"الهاتف"]
[]
[]
[]
[null,null,"التسلسل","الكود","اسم الصنف","الكمية",null,"السعر","القيمه"]
[null,null,null,null,null,null,null,null,null,null,null,null,10]
[null,null,null,null,null,null,null,null,null,null,null,null,11]
[null,null,null,null,null,null,null,null,null,null,null,null,12]
[null,null,null,null,null,null,null,null,null,null,null,null,13]
[null,null,null,null,null,null,null,null,null,null,null,null,14]
[null,null,null,null,null,null,null,null,null,null,null,null,15]
[null,null,null,null,null,null,null,null,null,null,null,null,16]
[null,null,null,null,null,null,null,null,null,null,null,null,17]
[null,null,null,null,null,null,null,null,null,null,null,null,18]
[null,null,null,null,null,null,null,null,null,null,null,null,19]
[null,null,{"$f":"IF(NOT(ISBLANK(E20)),COUNTA(E$10:E20),\"\")","v":""},null,null,null,null,null,null,null,null,null,20]
[null,null,{"$f":"IF(NOT(ISBLANK(E21)),COUNTA(E$10:E21),\"\")","v":""},null,null,null,null,null,null,null,null,null,21]
[null,null,{"$f":"IF(NOT(ISBLANK(E22)),COUNTA(E$10:E22),\"\")","v":""},null,null,null,null,null,null,null,null,null,22]
[null,null,{"$f":"IF(NOT(ISBLANK(E23)),COUNTA(E$10:E23),\"\")","v":""},null,null,null,null,null,null,null,null,null,23]
[null,null,{"$f":"IF(NOT(ISBLANK(E24)),COUNTA(E$10:E24),\"\")","v":""},null,null,null,null,null,null,null,null,null,24]
[null,null,{"$f":"IF(NOT(ISBLANK(E25)),COUNTA(E$10:E25),\"\")","v":""},null,null,null,null,null,null,null,null,null,25]
[null,null,{"$f":"IF(NOT(ISBLANK(E26)),COUNTA(E$10:E26),\"\")","v":""},null,null,null,null,null,null,null,null,null,26]
[null,null,{"$f":"IF(NOT(ISBLANK(E27)),COUNTA(E$10:E27),\"\")","v":""},null,null,null,null,null,null,null,null,null,27]
[null,null,{"$f":"IF(NOT(ISBLANK(E28)),COUNTA(E$10:E28),\"\")","v":""},null,null,null,null,null,null,null,null,null,28]
[null,null,{"$f":"IF(NOT(ISBLANK(E29)),COUNTA(E$10:E29),\"\")","v":""},null,null,null,null,null,null,null,null,null,29]
[null,null,{"$f":"IF(NOT(ISBLANK(E30)),COUNTA(E$10:E30),\"\")","v":""},null,null,null,null,null,null,null,null,null,30]
[null,null,{"$f":"IF(NOT(ISBLANK(E31)),COUNTA(E$10:E31),\"\")","v":""},null,null,null,null,null,null,null,null,null,31]
[null,null,{"$f":"IF(NOT(ISBLANK(E32)),COUNTA(E$10:E32),\"\")","v":""},null,null,null,null,null,null,null,null,null,32]
[null,null,{"$f":"IF(NOT(ISBLANK(E33)),COUNTA(E$10:E33),\"\")","v":""},null,null,null,null,null,null,null,null,null,33]
[null,null,{"$f":"IF(NOT(ISBLANK(E34)),COUNTA(E$10:E34),\"\")","v":""},null,null,null,null,null,null,null,null,null,35]
[null,null,{"$f":"IF(NOT(ISBLANK(E35)),COUNTA(E$10:E35),\"\")","v":""},null,null,null,null,null,null,null,null,null,36]
[null,null,{"$f":"IF(NOT(ISBLANK(E36)),COUNTA(E$10:E36),\"\")","v":""},null,null,null,null,null,null,null,null,null,37]
[null,null,{"$f":"IF(NOT(ISBLANK(E37)),COUNTA(E$10:E37),\"\")","v":""},null,null,null,null,null,null,null,null,null,38]
[null,null,{"$f":"IF(NOT(ISBLANK(E38)),COUNTA(E$10:E38),\"\")","v":""},null,null,null,null,null,null,null,null,null,39]
[null,null,{"$f":"IF(NOT(ISBLANK(E39)),COUNTA(E$10:E39),\"\")","v":""},null,null,null,null,null,null,null,null,null,40]
[null,null,{"$f":"IF(NOT(ISBLANK(E40)),COUNTA(E$10:E40),\"\")","v":""},null,null,null,null,null,null,null,null,null,41]
[null,null,{"$f":"IF(NOT(ISBLANK(E41)),COUNTA(E$10:E41),\"\")","v":""},null,null,null,null,null,null,null,null,null,42]
[null,null,{"$f":"IF(NOT(ISBLANK(E42)),COUNTA(E$10:E42),\"\")","v":""},null,null,null,null,null,null,null,null,null,43]
[null,null,{"$f":"IF(NOT(ISBLANK(E43)),COUNTA(E$10:E43),\"\")","v":""},null,null,null,null,null,null,null,null,null,44]
[null,null,{"$f":"IF(NOT(ISBLANK(E44)),COUNTA(E$10:E44),\"\")","v":""},null,null,null,null,null,null,null,null,null,45]
[null,null,{"$f":"IF(NOT(ISBLANK(E45)),COUNTA(E$10:E45),\"\")","v":""},null,null,null,null,null,null,null,null,null,55]
[null,null,{"$f":"IF(NOT(ISBLANK(E46)),COUNTA(E$10:E46),\"\")","v":""},null,null,null,null,null,null,null,null,null,55]
[null,null,{"$f":"IF(NOT(ISBLANK(E47)),COUNTA(E$10:E47),\"\")","v":""},null,null,null,null,null,null,null,null,null,55]
[null,null,{"$f":"IF(NOT(ISBLANK(E48)),COUNTA(E$10:E48),\"\")","v":""},null,null,null,null,null,null,null,null,null,55]
[null,null,{"$f":"IF(NOT(ISBLANK(E49)),COUNTA(E$10:E49),\"\")","v":""},null,null,null,null,null,null,null,null,null,55]
[null,null,{"$f":"IF(NOT(ISBLANK(E50)),COUNTA(E$10:E50),\"\")","v":""},null,null,null,null,null,null,null,null,null,55]
[null,null,{"$f":"IF(NOT(ISBLANK(E51)),COUNTA(E$10:E51),\"\")","v":""},null,null,null,null,null,null,null,null,null,55]
[null,null,{"$f":"IF(NOT(ISBLANK(E52)),COUNTA(E$10:E52),\"\")","v":""},null,null,null,null,null,null,null,null,null,55]
[null,null,{"$f":"IF(NOT(ISBLANK(E53)),COUNTA(E$10:E53),\"\")","v":""},null,null,null,null,null,null,null,null,null,55]
[null,null,{"$f":"IF(NOT(ISBLANK(E54)),COUNTA(E$10:E54),\"\")","v":""},null,null,null,null,null,null,null,null,null,55]
[null,null,{"$f":"IF(NOT(ISBLANK(E55)),COUNTA(E$10:E55),\"\")","v":""},null,null,null,null,null,null,null,null,null,55]
[null,null,null,null,null,"المجموع ",null,84130,null,null,null,0,null,null,0,null,null,0,null,null,0,null,null,0,null,null,0,null,null,0,null,null,0,null,null,0,null,null,0,null,null,0,null,null,0,null,null,0,null,null,0,null,null,0,null,null,0,null,null,0,null,null,0,null,null,0,null,null,0,null,null,0,null,null,0,null,null,0,null,null,0,null,null,0,null,null,0,null,null,0,null,null,0,null,null,0,null,null,0,null,null,0,null,null,0,null,null,0,null,null,0,null,null,0,null,null,0,null,null,0,null,null,0,null,null,0,null,null,0,null,null,0,null,null,0,null,null,0,null,null,0,null,null,0,null,null,0,null,null,0,null,null,0,null,null,0,null,null,0,null,null,0,null,null,0,null,null,0,null,null,0,null,null,0,null,null,0,null,null,0,null,null,0,null,null,0,null,null,0,null,null,0,null,null,0,null,null,0,null,null,0,null,null,0,null,null,0,null,null,0,null,null,0,null,null,0,null,null,0,null,null,0,null,null,0,null,null,0,null,null,0,null,null,0,null,null,0,null,null,0,null,null,0,null,null,0,null,null,0,null,null,0,null,null,0,null,null,0,null,null,0,null,null,0,null,null,0,null,null,0,null,null,0,null,null,0]
[null,null,null,null,null,"الباقي قديم",null,"33000"]
[null,null,null,null,null,"دفع"]
[null,null,null,null,null,"الجمالي",null,117130]

{"sheet":"invoice","index":2,"n_rows":59,"n_cols":276,"rows_kept":59,"cut":false,"hidden":false,"merged":[[58,3,58,4],[57,3,57,4],[2,2,2,3],[4,2,4,3],[6,7,6,8],[6,2,6,3],[55,5,55,6],[56,5,56,6],[57,5,57,6],[58,5,58,6],[55,7,55,8],[56,7,56,8],[57,7,57,8],[58,7,58,8]]}
[3,null,null,0,null,null,"00:00:00",null,null,0,null,null,0,null,null,0,null,null,0,null,null,0,null,null,0,null,null,0,null,null,0,null,null,0,null,null,0,null,null,0,null,null,0,null,null,0,null,null,0,null,null,0,null,null,0,null,null,0,null,null,0,null,null,0,null,null,0,null,null,0,null,null,0,null,null,0,null,null,0,null,null,0,null,null,0,null,null,0,null,null,0,null,null,0,null,null,0,null,null,0,null,null,0,null,null,0,null,null,0,null,null,0,null,null,0,null,null,0,null,null,0,null,null,0,null,null,0,null,null,0,null,null,0,null,null,0,null,null,0,null,null,0,null,null,0,null,null,0,null,null,0,null,null,0,null,null,0,null,null,0,null,null,0,null,null,0,null,null,0,null,null,0,null,null,0,null,null,0,null,null,0,null,null,0,null,null,0,null,null,0,null,null,0,null,null,0,null,null,0,null,null,0,null,null,0,null,null,0,null,null,0,null,null,0,null,null,0,null,null,0,null,null,0,null,null,0,null,null,0,null,null,0,null,null,0,null,null,0,null,null,0,null,null,0,null,null,0,null,null,0,null,null,0,null,null,0,null,null,0,null,null,0,null,null,0,null,null,0,null,null,0]
[]
[null,null,"التاريخ :",null,{"$f":"NOW()","v":"2018-06-30T21:56:11.600"},{"$f":"$E$3","v":43281.914023148151},null,253]
[]
[null,null,"فاتورة رقم 1السيد :",null,null,"الهاتف"]
[]
[]
[]
[null,null,"التسلسل","الكود","اسم الصنف","الكمية",null,"السعر","القيمه"]
[null,null,null,null,null,null,null,null,null,null,null,null,10]
[null,null,null,null,null,null,null,null,null,null,null,null,11]
[null,null,null,null,null,null,null,null,null,null,null,null,12]
[null,null,null,null,null,null,null,null,null,null,null,null,13]
[null,null,null,null,null,null,null,null,null,null,null,null,14]
[null,null,null,null,null,null,null,null,null,null,null,null,15]
[null,null,null,null,null,null,null,null,null,null,null,null,16]
[null,null,null,null,null,null,null,null,null,null,null,null,17]
[null,null,null,null,null,null,null,null,null,null,null,null,18]
[null,null,null,null,null,null,null,null,null,null,null,null,19]
[null,null,null,null,null,null,null,null,null,null,null,null,20]
[null,null,null,null,null,null,null,null,null,null,null,null,21]
[null,null,null,null,null,null,null,null,null,null,null,null,22]
[null,null,null,null,null,null,null,null,null,null,null,null,23]
[null,null,null,null,null,null,null,null,null,null,null,null,24]
[null,null,null,null,null,null,null,null,null,null,null,null,25]
[null,null,null,null,null,null,null,null,null,null,null,null,26]
[null,null,null,null,null,null,null,null,null,null,null,null,27]
[null,null,null,null,null,null,null,null,null,null,null,null,29]
[null,null,null,null,null,null,null,null,null,null,null,null,30]
[null,null,null,null,null,null,null,null,null,null,null,null,31]
[null,null,null,null,null,null,null,null,null,null,null,null,32]
[null,null,null,null,null,null,null,null,null,null,null,null,33]
[null,null,null,null,null,null,null,null,null,null,null,null,34]
[null,null,null,null,null,null,null,null,null,null,null,null,35]
[null,null,null,null,null,null,null,null,null,null,null,null,36]
[null,null,null,null,null,null,null,null,null,null,null,null,37]
[null,null,null,null,null,null,null,null,null,null,null,null,38]
[null,null,null,null,null,null,null,null,null,null,null,null,39]
[null,null,null,null,null,null,null,null,null,null,null,null,40]
[null,null,null,null,null,null,null,null,null,null,null,null,41]
[null,null,null,null,null,null,null,null,null,null,null,null,42]
[null,null,null,null,null,null,null,null,null,null,null,null,43]
[null,null,{"$f":"IF(NOT(ISBLANK(E43)),COUNTA(E$10:E43),\"\")","v":""},null,null,null,null,null,null,null,null,null,44]
[null,null,{"$f":"IF(NOT(ISBLANK(E44)),COUNTA(E$10:E44),\"\")","v":""},null,null,null,null,null,null,null,null,null,55]
[null,null,{"$f":"IF(NOT(ISBLANK(E45)),COUNTA(E$10:E45),\"\")","v":""},null,null,null,null,null,null,null,null,null,55]
[null,null,{"$f":"IF(NOT(ISBLANK(E46)),COUNTA(E$10:E46),\"\")","v":""},null,null,null,null,null,null,null,null,null,55]
[null,null,{"$f":"IF(NOT(ISBLANK(E47)),COUNTA(E$10:E47),\"\")","v":""},null,null,null,null,null,null,null,null,null,55]
[null,null,{"$f":"IF(NOT(ISBLANK(E48)),COUNTA(E$10:E48),\"\")","v":""},null,null,null,null,null,null,null,null,null,55]
[null,null,{"$f":"IF(NOT(ISBLANK(E49)),COUNTA(E$10:E49),\"\")","v":""},null,null,null,null,null,null,null,null,null,55]
[null,null,{"$f":"IF(NOT(ISBLANK(E50)),COUNTA(E$10:E50),\"\")","v":""},null,null,null,null,null,null,null,null,null,55]
[null,null,{"$f":"IF(NOT(ISBLANK(E51)),COUNTA(E$10:E51),\"\")","v":""},null,null,null,null,null,null,null,null,null,55]
[null,null,{"$f":"IF(NOT(ISBLANK(E52)),COUNTA(E$10:E52),\"\")","v":""},null,null,null,null,null,null,null,null,null,55]
[null,null,{"$f":"IF(NOT(ISBLANK(E53)),COUNTA(E$10:E53),\"\")","v":""},null,null,null,null,null,null,null,null,null,55]
[null,null,{"$f":"IF(NOT(ISBLANK(E54)),COUNTA(E$10:E54),\"\")","v":""},null,null,null,null,null,null,null,null,null,55]
[null,null,{"$f":"IF(NOT(ISBLANK(E55)),COUNTA(E$10:E55),\"\")","v":""},null,null,null,null,null,null,null,null,null,55]
[null,null,null,null,null,"المجموع ",null,199887,null,null,null,0,null,null,0,null,null,0,null,null,0,null,null,0,null,null,0,null,null,0,null,null,0,null,null,0,null,null,0,null,null,0,null,null,0,null,null,0,null,null,0,null,null,0,null,null,0,null,null,0,null,null,0,null,null,0,null,null,0,null,null,0,null,null,0,null,null,0,null,null,0,null,null,0,null,null,0,null,null,0,null,null,0,null,null,0,null,null,0,null,null,0,null,null,0,null,null,0,null,null,0,null,null,0,null,null,0,null,null,0,null,null,0,null,null,0,null,null,0,null,null,0,null,null,0,null,null,0,null,null,0,null,null,0,null,null,0,null,null,0,null,null,0,null,null,0,null,null,0,null,null,0,null,null,0,null,null,0,null,null,0,null,null,0,null,null,0,null,null,0,null,null,0,null,null,0,null,null,0,null,null,0,null,null,0,null,null,0,null,null,0,null,null,0,null,null,0,null,null,0,null,null,0,null,null,0,null,null,0,null,null,0,null,null,0,null,null,0,null,null,0,null,null,0,null,null,0,null,null,0,null,null,0,null,null,0,null,null,0,null,null,0,null,null,0,null,null,0,null,null,0,null,null,0,null,null,0,null,null,0,null,null,0,null,null,0]
[null,null,null,null,null,"الباقي قديم",null,"186939"]
[null,null,null,null,null,"دفع"]
[null,null,null,null,null,"الجمالي",null,386826]

{"sheet":"codes2","index":3,"n_rows":39,"n_cols":6,"rows_kept":39,"cut":false,"hidden":false,"merged":[]}
[]
[]
[null,null,null,null,null,"الرجاء الدخول للفيجوال بيسك و الاطلاع على الفورم لفهم المطلوب بالضبط وشكرا مسبق للجميع على مساعدتهم"]
[]
[]
[]
[]
[]
[]
[]
[]
[]
[]
[]
[]
[]
[]
[]
[]
[]
[]
[]
[]
[]
[]
[]
[]
[]
[]
[]
[]
[]
[]
[]
[]
[]
[null,null,null,null,null,10]
[]
[null,null,null,null,null,120]

{"sheet":"codes","index":4,"n_rows":663,"n_cols":6,"rows_kept":663,"cut":false,"hidden":false,"merged":[]}
["كود صنف",null,null,"سعر البيع","سعر شرء"]
[1,null,null,290,260]
[2,null,null,2000,1975,"الرجاء الدخول للفيجوال بيسك و الاطلاع على الفورم لفهم المطلوب بالضبط وشكرا مسبق للجميع على مساعدتهم"]
[3,null,null,38,33]
[4,null,null,168,156]
[5,null,null,208,195]
[7,null,null,2300,2250]
[8,null,null,2200,2125]
[10,null,null,960,930]
[11,null,null,2460,2375]
[12,null,null,1040,970]
[13,null,null,2000,1900]
[14,null,null,1700,1575]
[16,null,null,840,770]
[22,null,null,800,720]
[23,null,null,290,275]
[24,null,null,840,774]
[26,null,null,1800,1720]
[27,null,null,340,312]
[28,null,null,216,190]
[29,null,null,180,164]
[30,null,null,310,290]
[32,null,null,180,164]
[33,null,null,1500,1440]
[34,null,null,840,700]
[35,null,null,4650,4500]
[36,null,null,196,192]
[37,null,null,1000,98]
[38,null,null,2650,2550]
[39,null,null,2900,2800]
[40,null,null,120,117]
[41,null,null,1900,1870]
[43,null,null,124,118]
[42,null,null,110,100]
[45,null,null,450,440]
[50,null,null,125,112]
[51,null,null,250,230]
[52,null,null,514,507]
[53,null,null,1020,1000]
[54,null,null,7260,7160]
[55,null,null,5840,5760]
[56,null,null,3760,3640]
[57,null,null,3560,3420]
[59,null,null,8100,7864]
[60,null,null,6500,6324]
[306,null,null,4060,3952]
[370,null,null,3760,3660]
[371,null,null,6000,5860]
[373,null,null,7500,7320]
[470,null,null,6850,6628]
[46,null,null,66,60]
[48,null,null,118,1080]
[49,null,null,66,60]
[61,null,null,700,580]
[62,null,null,500,400]
[64,null,null,105,98]
[63,null,null,206,196]
[65,null,null,210,190]
[68,null,null,1900,1800]
[70,null,null,200,196]
[72,null,null,400,380]
[73,null,null,1320,930]
[74,null,null,570,510]
[75,null,null,290,272]
[76,null,null,280,270]
[77,null,null,300,284]
[78,null,null,300,284]
[79,null,null,138,132]
[80,null,null,92,84]
[81,null,null,2240,2120]
[82,null,null,1800,1620]
[84,null,null,2300,2100]
[85,null,null,2200,2100]
[86,null,null,3100,2800]
[87,null,null,2240,2140]
[88,null,null,460,430]
[89,null,null,5800,5400]
[90,null,null,2440,2400]
[91,null,null,3300,3100]
[92,null,null,2440,2320]
[93,null,null,2400,2240]
[94,null,null,3200,2900]
[95,null,null,2340,2160]
[96,null,null,460,430]
[97,null,null,540,440]
[98,null,null,760,720]
[99,null,null,1300,1190]
[100,null,null,1300,1260]
[101,null,null,1500,1420]
[102,null,null,1360,1330]
[103,null,null,1080,1020]
[104,null,null,1800,1770]
[105,null,null,1800,1770]
[106,null,null,1800,1770]
[107,null,null,1800,1770]
[108,null,null,1480,1430]
[109,null,null,1500,1470]
[110,null,null,1260,1220]
[111,null,null,1260,1220]
[112,null,null,1440,1370]
[113,null,null,1460,1410]
[114,null,null,1260,1230]
[117,null,null,400,392]
[118,null,null,0,0]
[119,null,null,800,710]
[120,null,null,600,560]
[121,null,null,1240,1210]
[122,null,null,300,270]
[123,null,null,0,0]
[124,null,null,260,236]
[125,null,null,250,230]
[126,null,null,140,130]
[127,null,null,234,220]
[128,null,null,80,78]
[129,null,null,226,3160]
[130,null,null,226,3160]
[131,null,null,3100,3060]
[132,null,null,600,580]
[133,null,null,340,300]
[134,null,null,330,320]
[135,null,null,1700,1650]
[136,null,null,52,48]
[137,null,null,1320,1250]
[138,null,null,300,260]
[141,null,null,84,80]
[142,null,null,396,384]
[143,null,null,800,760]
[144,null,null,290,272]
[145,null,null,960,920]
[146,null,null,280,270]
[147,null,null,1200,1120]
[150,null,null,130,136]
[151,null,null,200,190]
[152,null,null,100,92]
[154,null,null,120,116]
[155,null,null,1500,1460]
[156,null,null,1340,1310]
[157,null,null,840,740]
[158,null,null,300,280]
[163,null,null,210,200]
[165,null,null,220,212]
[166,null,null,1460,1392]
[167,null,null,290,280]
[168,null,null,180,170]
[169,null,null,1360,1220]
[170,null,null,1400,1340]
[171,null,null,1300,1260]
[172,null,null,190,170]
[173,null,null,680,620]
[174,null,null,1460,1430]
[175,null,null,190,184]
[176,null,null,1460,1440]
[177,null,null,160,144]
[178,null,null,140,128]
[179,null,null,90,80]
[181,null,null,146,136]
[182,null,null,90,75]
[183,null,null,88,80]
[184,null,null,112,100]
[185,null,null,180,172]
[186,null,null,2200,2160]
[187,null,null,1240,1160]
[188,null,null,780,720]
[189,null,null,1400,1260]
[190,null,null,640,520]
[191,null,null,380,360]
[192,null,null,206,193]
[193,null,null,1660,1520]
[194,null,null,1300,1516]
[195,null,null,1320,1256]
[196,null,null,1900,1820]
[197,null,null,1000,960]
[198,null,null,1000,960]
[199,null,null,1200,1160]
[200,null,null,960,900]
[201,null,null,680,630]
[202,null,null,0,0]
[203,null,null,1200,1120]
[204,null,null,960,900]
[205,null,null,1200,1140]
[206,null,null,1140,1077]
[207,null,null,210,180]
[208,null,null,1660,1500]
[209,null,null,1220,1170]
[210,null,null,330,326]
[211,null,"","390","370"]
[212,null,null,740,670]
[213,null,null,1500,1460]
[214,null,null,1000,960]
[215,null,null,1320,1240]
[217,null,null,1200,1140]
[218,null,null,176,172]
[219,null,null,1100,1060]
[220,null,null,1000,960]
[221,null,null,1580,1572]
[222,null,null,240,220]
[223,null,null,130,114]
[224,null,null,1000,920]
[225,null,null,64,58]
[226,null,null,1200,1130]
[227,null,null,1140,1077]
[230,null,null,1440,1440]
[231,null,null,1340,1296]
[232,null,null,360,300]
[233,null,null,170,150]
[234,null,null,1660,1580]
[235,null,null,350,330]
[236,null,null,140,132]
[237,null,null,110,98]
[242,null,null,166,156]
[243,null,null,11700,11600]
[244,null,null,1800,1700]
[245,null,null,110,102]
[246,null,null,290,275]
[247,null,null,1860,1740]
[248,null,null,1200,1120]
[249,null,null,70,66]
[250,null,null,880,800]
[251,null,null,1600,1800]
[252,null,null,760,620]
[253,null,null,600,460]
[254,null,null,760,680]
[255,null,null,210,200]
[256,null,null,84,80]
[264,null,null,1000,960]
[265,null,null,740,660]
[269,null,null,900,840]
[270,null,null,560,500]
[271,null,null,700,660]
[272,null,null,380,310]
[273,null,null,1260,1220]
[274,null,null,300,250]
[275,null,null,0,0]
[276,null,null,160,116]
[277,null,null,1660,1500]
[278,null,null,290,280]
[279,null,null,1660,1560]
[280,null,null,0,0]
[281,null,null,300,272]
[287,null,null,1000,920]
[291,null,null,860,820]
[292,null,null,300,270]
[293,null,null,280,270]
[294,null,null,1580,1480]
[295,null,null,300,260]
[296,null,null,700,580]
[298,null,null,90,77]
[299,null,null,1200,1120]
[300,null,null,900,800]
[302,null,null,960,920]
[303,null,null,100,86]
[58,null,null,180,164]
[307,null,null,460,430]
[308,null,null,4300,4100]
[309,null,null,960,900]
[310,null,null,1900,1700]
[311,null,null,180,170]
[312,null,null,430,400]
[313,null,null,340,330]
[314,null,null,350,326]
[315,null,null,4100,4030]
[316,null,null,140,132]
[317,null,null,230,220]
[318,null,null,1980,1920]
[319,null,null,96,90]
[321,null,null,660,636]
[322,null,null,700,660]
[323,null,null,1240,1200]
[324,null,null,2700,2400]
[325,null,null,385,370]
[326,null,null,1040,960]
[327,null,null,100,90]
[328,null,null,500,475]
[329,null,null,200,190]
[330,null,null,132,126]
[331,null,null,2400,2300]
[332,null,null,2000,1860]
[335,null,null,1200,1090]
[336,null,null,210,176]
[337,null,null,116,110]
[339,null,null,960,930]
[340,null,null,280,270]
[341,null,null,100,98]
[342,null,null,250,240]
[343,null,null,380,366]
[345,null,null,76,70]
[346,null,null,124,112]
[347,null,null,180,164]
[350,null,null,116,110]
[352,null,null,700,670]
[353,null,null,324,314]
[354,null,null,1080,1040]
[355,null,null,880,840]
[356,null,null,400,360]
[360,null,null,440,400]
[361,null,null,440,400]
[362,null,null,2700,2400]
[364,null,null,500,370]
[365,null,null,220,214]
[366,null,null,520,480]
[367,null,null,760,680]
[368,null,null,740,680]
[369,null,null,1600,1575]
[374,null,null,800,740]
[378,null,null,2940,2840]
[379,null,null,620,560]
[380,null,null,86,80]
[381,null,null,960,900]
[382,null,null,800,680]
[383,null,null,400,120]
[384,null,null,460,380]
[385,null,null,1800,1600]
[386,null,null,940,800]
[387,null,null,360,260]
[388,null,null,760,675]
[389,null,null,800,610]
[390,null,null,30,24]
[391,null,null,80,76]
[392,null,null,96,75]
[393,null,null,80,80]
[394,null,null,500,440]
[396,null,null,240,220]
[398,null,null,1160,1040]
[399,null,null,1100,1000]
[401,null,null,165,150]
[402,null,null,560,490]
[403,null,null,250,240]
[404,null,null,380,340]
[405,null,null,1100,960]
[406,null,null,290,270]
[407,null,null,0,0]
[408,null,null,0,0]
[409,null,null,106,96]
[410,null,null,120,112]
[411,null,null,280,270]
[412,null,null,220,196]
[413,null,null,null,0]
[414,null,null,200,196]
[415,null,null,100,90]
[416,null,null,100,90]
[417,null,null,0,0]
[418,null,null,300,260]
[419,null,null,800,700]
[420,null,null,120,112]
[421,null,null,1200,1020]
[422,null,null,176,160]
[423,null,null,1400,1380]
[424,null,null,2000,1860]
[425,null,null,800,720]
[426,null,null,1800,1700]
[427,null,null,144,136]
[429,null,null,800,740]
[430,null,null,125,117]
[431,null,null,146,140]
[432,null,null,164,148]
[434,null,null,16,12]
[435,null,null,0,0]
[436,null,null,66,56]
[437,null,null,1200,1020]
[440,null,null,206,196]
[441,null,null,1200,1100]
[442,null,null,null,0]
[445,null,null,2700,2544]
[446,null,null,860,830]
[447,null,null,null,210]
[448]
[449,null,null,1200,1137]
[450,null,null,88,86]
[451,null,null,66,65]
[452,null,null,900,840]
[453,null,null,90,80]
[454,null,null,300,210]
[455,null,null,null,120]
[456,null,null,2060,1940]
[458,null,null,800,740]
[459,null,null,600,530]
[460,null,null,600,560]
[461,null,null,70,67]
[462,null,null,2400,2260]
[463,null,null,1260,1130]
[465,null,null,600,440]
[466,null,null,920,860]
[467,null,null,560,470]
[469,null,null,180,140]
[471,null,null,0]
[472,null,null,780,720]
[473,null,null,190,164]
[474,null,null,1240]
[479,null,null,520,470]
[480,null,null,140,132]
[481,null,null,160,152]
[482,null,null,1660,1480]
[483,null,null,80,78]
[485,null,null,0,0]
[486,null,null,160,160]
[487,null,null,960,900]
[488,null,null,1000,940]
[490,null,null,510,480]
[492,null,null,760,720]
[493,null,null,2100,2000]
[496,null,null,170,158]
[497,null,null,370,356]
[498,null,null,1160,1120]
[503,null,null,860,780]
[512,null,null,700,680]
[513,null,null,138,134]
[514,null,null,128,124]
[515,null,null,460,420]
[516,null,null,62,60]
[517,null,null,58,54]
[521,null,null,140,130]
[522,null,null,150,136]
[527,null,null,150,136]
[528,null,null,1200,1160]
[529,null,null,900,810]
[531,null,null,940,850]
[532,null,null,28,27]
[533,null,null,124,115]
[534,null,null,65,65]
[535,null,null,190,168]
[536,null,null,74,70]
[538,null,null,36,35]
[539,null,null,75,70]
[540,null,null,56,52]
[541,null,null,18,18]
[542,null,null,36,35]
[544,null,null,36,35]
[545,null,null,36,35]
[546,null,null,600,660]
[548,null,null,100,90]
[549,null,null,640,600]
[551,null,null,400,280]
[552,null,null,900,770]
[561,null,null,920,816]
[564,null,null,116,106]
[566,null,null,0,0]
[567,null,null,140]
[568,null,null,150,130]
[569,null,null,3100,3040]
[570,null,null,850,720]
[571,null,null,26,16]
[572,null,null,2000,1950]
[574,null,null,0,0]
[575,null,null,280]
[576,null,null,270,250]
[579,null,null,144,131]
[581,null,null,130,124]
[583,null,null,520,480]
[584,null,null,120,110]
[585,null,null,190,164]
[586,null,null,208,192]
[588,null,null,1800,1700]
[589,null,null,1240,1210]
[591,null,null,1240,1210]
[592,null,null,1700,1540]
[596,null,null,2240,2000]
[598,null,null,1000,840]
[600,null,null,900,800]
[601,null,null,6860,6580]
[602,null,null,3000,2900]
[603,null,null,240,236]
[604,null,null,1260,1140]
[606,null,null,8600,8220]
[608,null,null,190,180]
[610,null,null,360,282]
[612,null,null,170,152]
[614,null,null,50,67]
[615,null,null,260,250]
[617,null,null,150,140]
[618,null,null,300,278]
[623,null,null,null,940]
[623,null,null,null,376]
[624,null,null,null,186]
[624,null,null,null,94]
[628,null,null,null,470]
[629,null,null,null,720]
[630,null,null,null,1380]
[631,null,null,null,160]
[632,null,null,66,56]
[633,null,null,null,2400]
[635,null,null,null,305]
[636,null,null,300,260]
[638,null,null,null,42]
[641,null,null,840,828]
[642,null,null,null,190]
[643,null,null,52,48]
[644,null,null,450,420]
[645,null,null,86,80]
[646,null,null,null,240]
[647,null,null,null,2200]
[648,null,null,null,892]
[649,null,null,null,1400]
[651,null,null,120,96]
[653,null,null,null,160]
[655,null,null,290,270]
[652,null,null,150,130]
[653,null,null,120]
[654,null,null,1560,1520]
[655,null,null,1520,1460]
[655,null,null,80,70]
[656,null,null,1000,970]
[656,null,null,200,180]
[657,null,null,2000,1900]
[658,null,null,272]
[659,null,null,1900,1850]
[660,null,null,1700,1600]
[661,null,null,880,840]
[662,null,null,580]
[662,null,null,500]
[663,null,null,800,760]
[664,null,null,900,830]
[665,null,null,740,700]
[666,null,null,940,920]
[667,null,null,480,480]
[668,null,null,170,160]
[670,null,null,960,920]
[671,null,null,840,790]
[672,null,null,500,460]
[672,null,null,240,190]
[673,null,null,480,430]
[674,null,null,1000,924]
[674,null,null,1200,1120]
[675,null,null,660,600]
[677,null,null,40]
[678,null,null,180,170]
[676,null,null,106,101]
[677,null,null,56,42]
[678,null,null,46,44]
[680,null,null,88,86]
[681,null,null,280]
[679,null,null,740,700]
[680,null,null,1800,1750]
[681,null,null,4300,4220]
[682,null,null,1925,1825]
[679,null,null,1700,1575]
[680,null,null,1950,1825]
[681,null,null,108,104]
[680,null,null,380,370]
[681,null,null,960]
[681,null,null,960]
[678,null,null,840,750]
[680,null,null,130,122]
[680,null,null,36,35]
[681,null,null,50,47]
[682,null,null,90,75]
[683,null,null,960,840]
[685,null,null,980,950]
[686,null,null,18,14]
[687,null,null,1300]
[688,null,null,960,880]
[689,null,null,960,780]
[691,null,null,230,220]
[692,null,null,11500,11100]
[693,null,null,5700,5500]
[694,null,null,360]
[695,null,null,184,176]
[695,null,null,130,122]
[696,null,null,360,270]
[697,null,null,180,150]
[695,null,null,640,560]
[696,null,null,1850]
[697,null,null,85,75]
[698,null,null,360,320]
[699,null,null,1950,1900]
[701,null,null,900,840]
[702,null,null,194,180]
[702,null,null,460,400]
[703,null,null,100,96]
[701,null,null,1580,1480]
[702,null,null,2000]
[700,null,null,980,880]
[701,null,null,96,90]
[702,null,null,1380,1280]
[704,null,null,1950,2000]
[705,null,null,780,680]
[706,null,null,570]
[707,null,null,3940,3564]
[708,null,null,54,46]
[709,null,null,80,72]
[710,null,null,90]
[711,null,null,1000,800]
[712,null,null,36,32]
[713,null,null,160,146]
[714,null,null,800]
[715,null,null,226,210]
[716,null,1000,1600,1504]
[717,null,500,1800,1700]
[718,null,500,1700,1680]
[719,null,null,1360,1327]
[720,null,null,1360,1340]
[721,null,null,1200,1160]
[722,null,null,1240,1200]
[723,null,200,1560,1520]
[724,null,500,1900,1800]
[725,null,null,1320,1280]
[726,null,null,1700]
[727,null,null,2400,2240]
[728,null,null,2700,2544]
[729,null,null,820,770]
[730,null,null,"1760","1800"]
[731,null,null,"1600","1520"]
[733,null,null,"1200","1140"]
[734,null,null,"1600",1400]
[735,null,null,5600,5120]
[736,null,null,1200,1120]
[737,null,null,166,150]
[738,null,null,100,90]
[739,null,null,"2000","1900"]
[740,null,null,1000,970]
[741,null,null,"670","642"]
[742,null,null,"670","642"]
[743,null,"","670","642"]
[744,null,null,3100,2950]
[745]
[746,null,null,2600,2500]
[747,null,null,1100,1040]
[748,null,null,2250,90]
[749,null,null,940,92]
[750,null,null,2000,1925]
[751,null,null,520,492]
[752,null,"","220","215"]
[753,null,"1600","","1520"]
[754,null,"","740","640"]
[755,null,"","164","160"]
["631",null,"","1000","920"]
["630",null,"","2800","2700"]
[631,null,null,2800,2700]
[632,null,null,2650,2550]
["633",null,"","1800","1700"]
["633",null,"","1700",""]
["630",null,"","3100","2960"]
[630,null,null,290,280]
[630,null,null,720,595]
["637",null,"","210","190"]
[638,null,null,440,395]
[639,null,null,1080,1060]
["640",null,"","1600","1552"]
["641",null,"","280",""]
["642",null,"","800","750"]
["643",null,"","900",""]
["644",null,"","560",""]
["645",null,"","100","90"]
["646",null,"","2700","2600"]
[647,null,null,45]
["648",null,"","1140","1080"]
[649,null,null,2900,2750]
[650,null,null,2700,2575]
[650,null,null,2500,2350]
["649",null,"","350","338"]
["650",null,"","220","206"]
["651",null,"","1560","1440"]
["651",null,"","1700",""]
["652",null,"","940","880"]
["653",null,"","1060","960"]
["654",null,"","2360","2280"]
["655",null,"","170",""]
[656,null,null,2900,2750]
[657,null,null,2700,2500]
["658",null,"","2500","2400"]
["659",null,"","520","480"]
["660",null,"","760","630"]
["661",null,"","1300","1360"]
["662",null,"","1700",""]

{"sheet":"Customers","index":5,"n_rows":28,"n_cols":247,"rows_kept":28,"cut":false,"hidden":false,"merged":[]}
[null,null,null,null,null,null,300000,null,null,null,null,null,null,null,null,null,null,null,null,null,null,null,null,null,null,null,null,null,null,null,null,null,null,null,null,null,null,null,null,null,null,null,null,null,null,null,null,null,null,null,null,null,null,null,null,null,null,null,null,null,null,null,null,null,null,null,null,null,null,null,null,null,null,null,null,null,null,null,null,null,null,null,null,null,null,null,null,null,null,null,null,null,null,null,null,null,null,null,null,null,null,null,null,null,null,null,null,null,null,null,null,null,null,null,null,null,null,null,null,null,null,null,null,null,null,null,null,null,null,null,null,null,null,null,null,null,null,null,null,null,null,null,null,null,null,null,null,null,null,null,null,null,null,null,null,null,null,null,null,null,null,null,null,null,null,null,null,null,null,null,null,null,null,null,null,null,null,null,null,null,null,null,null,null,null,null,null,null,null,null,null,null,null,null,null,null,null,null,null,null,null,null,null,null,null,null,null,null,null,null,null,null,null,null,null,null,null,null,null,null,null,null,null,null,null,null,null,null,null,null,null,null,null,null,null,null,null,null,null,null,null,null,null,null,null,null,0]
[]
[null,null,null,null,null,null,340000]
[]
[]
[]
[]
[]
[]
[]
[]
[]
[]
[null,null,229702]
[]
[]
[]
[null,null,127011]
[]
[]
[]
[]
[]
[]
[null,0]
[null,0]
[null,0]
[null,0]